[Event "Reykjavik Open 2024"]
[Site "Reykjavik"]
[Date "2024.03.19"]
[Round "7.37"]
[White "Cieslak, Patryk"]
[Black "Shivika Rohilla"]
[Result "1-0"]
[ECO "E05"]
[WhiteElo "2325"]
[BlackElo "2003"]
[Annotator "TA"]
[PlyCount "125"]
[EventDate "2024.03.12"]
[EventCountry "ISL"]
[SourceTitle "playchess.com"]
[Source "ChessBase"]
[SourceQuality "1"]
[TimeControl "40/5400+30:1800+30"]

{[%evp 13,125,17,0,0,19,15,21,9,8,15,11,14,14,22,64,50,41,44,73,58,41,46,73,84,102,87,105,81,88,87,97,89,89,92,110,8,8,8,18,5,114,113,101,72,167,170,214,212,275,281,483,492,495,459,485,487,487,487,478,460,443,431,322,190,6195,6075,1856,1900,12019,12064,10541,10181,5708,2587,2460,2391,6729,5132,29976,29975,29975,29976,29976,29976,29977,29978,29980,29979,29980,29977,29977,29976,29981,29982,29983,29984,29984,29985,29986,29985,29989,29990,29991,29992,29992,29993,29993,29994,29994,29995,29995,29996,29997,29998]} 1. d4 {[%emt 0:00:01]} Nf6 {[%emt 0:03:20]} 2. c4 {[%emt 0:00:24]} e6 {[%emt 0:00:13]} 3. g3 {[%emt 0:00:02]} d5 {[%emt 0:00:18]} 4. Nf3 {[%emt 0:00:04]} Be7 {[%emt 0:00:06]} 5. Bg2 {[%emt 0:00:03]} O-O {[%emt 0:00:10]} 6. O-O {[%emt 0:00:05]} dxc4 {[%emt 0:00:04]} 7. Qc2 {[%emt 0:00:05]} b5 {[%emt 0:03:51]} 8. a4 {[%emt 0:01:03]} Bb7 {[%emt 0:00:43]} 9. axb5 {[%emt 0:02:27]} a6 {[%emt 0:00:11]} 10. Nc3 {[%emt 0:09:07] Die Stellung ist ausgeglichen.} (10. Qxc4 $2 axb5 11. Qxb5 Bc6 (11... Rxa1 $2 12. Qxb7 Rxb1 13. Qa8 $19) 12. Rxa8 Bxb5 $19) 10... axb5 {[%emt 0:03:13]} 11. Rxa8 {[%emt 0:01:32]} Bxa8 {[%emt 0:00:06]} 12. Nxb5 {[%emt 0:00:38]} c5 {[%emt 0:04:23]} 13. dxc5 {[%emt 0:05:34]} (13. Qxc4 Nbd7 $14) 13... Qa5 {[%emt 0:01:03]} 14. Nfd4 {[%emt 0:27:04]} ({Viel schwächer wäre} 14. Qxc4 Bd5 15. Qd3 Be4 $11) 14... Bxg2 {[%emt 0:21:00]} 15. Kxg2 {[%emt 0:00:05]} Qa8+ {[%emt 0:00:18]} 16. Nf3 {[%emt 0:09:28] Aktives Gegenspiel!} Rc8 {[%emt 0:19:55]} 17. Nd6 {[%emt 0:08:54]} Bxd6 {[%emt 0:05:49]} 18. cxd6 {[%emt 0:00:04]} Qc6 {[%emt 0:00:18]} 19. Rd1 {[%emt 0:01:51]} Nd5 {[%emt 0:03:33]} 20. Bd2 {[%emt 0:09:47]} Qxd6 {[%emt 0:05:45]} 21. e4 $1 {[%emt 0:01:26]} Nb4 {[%emt 0:03:02]} 22. Bxb4 {[%emt 0:00:29]} Qxb4 {[%emt 0:00:08]} 23. Rd4 $1 {[%emt 0:00:07]} Qb5 {[%emt 0:09:06]} 24. Qc3 {[%emt 0:01:00]} ({Günstiger ist} 24. Nd2 $16) 24... Nd7 $11 {[%emt 0:02:59] [#]} 25. b3 $1 $40 {[%emt 0:08:11][%cal Bb2b3,Bb3c4,Bc4c5,Bc5c6][%mdl 160] Weiss hat was vor.} Nb6 $1 {[%emt 0:00:06]} 26. bxc4 {[%emt 0:00:11]} Qc5 {[%emt 0:00:05] [#]} (26... Nxc4 $11 27. Nd2 Qa5 28. Qxa5 Nxa5) 27. Ne5 $1 $16 {[%emt 0:02:02][%mdl 512]} h6 {[%emt 0:02:29]} (27... Qxe5 $2 {verliert.} 28. Rd8+ Rxd8 29. Qxe5 $18) 28. Nd3 {[%emt 0:03:04]} Qc7 {[%emt 0:00:27]} (28... Na4 $16 {war angesagt.} 29. Nxc5 Nxc3) 29. c5 $18 {[%emt 0:00:29]} Nd7 {[%emt 0:00:41] [#]} 30. c6 $1 {[%emt 0:00:57][%mdl 512]} Nb6 {[%emt 0:00:26]} (30... Nb8 31. Rc4) 31. Nb4 {[%emt 0:00:22]} f5 $2 {[%emt 0:02:56]} (31... Kh7 32. Rd3 Na4) 32. exf5 {[%emt 0:03:10]} Nd5 {[%emt 0:00:06]} 33. Nxd5 {[%emt 0:01:01]} exd5 {[%emt 0:00:05]} 34. Rxd5 {[%emt 0:00:19]} Qxc6 {[%emt 0:00:06]} 35. Qxc6 {[%emt 0:00:30]} Rxc6 {[%emt 0:00:04][%mdl 4096] Endspiel. KR-KR} 36. h3 {[%emt 0:00:21]} Rc3 {[%emt 0:02:29]} 37. Rd7 {[%emt 0:00:34]} h5 {[%emt 0:02:51][%cal Bh6h5,Bh5h4][%mdl 32] [#]} 38. f6 {[%emt 0:02:29]} g6 $2 {[%emt 0:01:53]} (38... gxf6 39. Rd5 Kg7) 39. Rg7+ {[%emt 0:00:03]} Kf8 {[%emt 0:00:33]} 40. Rxg6 {[%emt 0:00:04] Rg5 wäre nun fies.} (40. h4 Rc8 41. Rxg6 Kf7) 40... Kf7 {[%emt 0:00:06]} 41. Rg5 {[%emt 0:30:05]} h4 {[%emt 0:30:24]} 42. g4 {[%emt 0:00:06]} Kxf6 {[%emt 0:00:37]} 43. Rh5 {[%emt 0:00:05]} Kg6 {[%emt 0:00:22]} 44. Rxh4 {[%emt 0:00:07] Droht stark Rh5.} Kg5 {[%emt 0:00:08]} 45. Rh5+ {[%emt 0:00:03]} Kg6 {[%emt 0:00:06]} 46. Re5 {[%emt 0:00:09] Weiß setzt Matt.} Kf6 {[%emt 0:00:12]} 47. Re3 {[%emt 0:00:01]} Rc4 {[%emt 0:00:10]} 48. Kg3 {[%emt 0:00:04]} Kg6 {[%emt 0:00:07]} 49. h4 {[%emt 0:00:11]} Ra4 {[%emt 0:00:09]} 50. f3 {[%emt 0:00:07][%cal Bf2f3,Bf3f4,Bf4f5][%mdl 32]} Rb4 {[%emt 0:00:06]} 51. Re6+ {[%emt 0:00:05]} Kf7 {[%emt 0:00:04]} 52. Re4 {[%emt 0:00:04]} Rb5 {[%emt 0:00:05]} 53. g5 {[%emt 0:00:13]} Ra5 {[%emt 0:00:08]} 54. Kg4 {[%emt 0:00:02]} Ra7 {[%emt 0:00:10]} 55. f4 {[%emt 0:00:05]} Kg7 {[%emt 0:00:05]} 56. h5 {[%emt 0:00:06][%cal Bh4h5,Bh5h6,Bh6h7][%mdl 32]} Rb7 {[%emt 0:00:04]} 57. h6+ {[%emt 0:00:08]} Kg6 {[%emt 0:00:39]} 58. f5+ {[%emt 0:00:04]} Kh7 {[%emt 0:00:05]} 59. Kh5 {[%emt 0:00:06]} Kg8 {[%emt 0:00:10]} 60. g6 {[%emt 0:00:07][%cal Re4e8]} Rb8 {[%emt 0:00:06]} 61. Kg5 {[%emt 0:00:04]} Ra8 {[%emt 0:00:05]} 62. h7+ {[%emt 0:00:07]} Kh8 {[%emt 0:00:05]} 63. Kh6 {[%emt 0:00:13] Gewichteter Fehlerwert: Weiß=0.17 (sehr präzise) /Schwarz=0.48.  Fehler:       	Weiß=2     	Schwarz=4     Ungenau:       	---       	Schwarz=3     OK:         	Weiß=10    	Schwarz=6     Bester:       	Weiß=4     	Schwarz=3     Stark:        	Weiß=2     	Schwarz=1} 1-0

[Event "Reykjavik Open 2024"]
[Site "Reykjavik"]
[Date "2024.03.19"]
[Round "7.38"]
[White "Botez, Alexandra"]
[Black "Jelsma, Remco"]
[Result "1-0"]
[ECO "E11"]
[WhiteElo "1986"]
[BlackElo "1802"]
[Annotator "NA RC"]
[PlyCount "67"]
[EventDate "2024.03.12"]
[EventCountry "ISL"]
[SourceTitle "playchess.com"]
[Source "ChessBase"]
[SourceQuality "1"]
[TimeControl "40/5400+30:1800+30"]

1. d4 {[%emt 0:01:39]} Nf6 {[%emt 0:00:08]} 2. c4 {[%emt 0:00:16]} e6 {[%emt 0:00:08]} 3. g3 {[%emt 0:00:08]} d5 {[%emt 0:00:53]} 4. Nf3 {[%emt 0:00:42]} Bb4+ {[%emt 0:01:44]} 5. Bd2 {[%emt 0:00:57]} Be7 {[%emt 0:02:03]} 6. Bg2 {[%emt 0:02:01]} O-O {[%emt 0:02:39]} 7. O-O {[%emt 0:06:25]} c5 {[%emt 0:04:09]} 8. dxc5 {[%emt 0:01:16]} Bxc5 {[%emt 0:02:32]} 9. Qc2 {[%emt 0:07:29]} b6 {[%emt 0:07:43]} 10. Bc3 {[%emt 0:07:45]} Bb7 {[%emt 0:05:57]} 11. b4 {[%emt 0:06:46]} Be7 {[%emt 0:06:21]} 12. Ng5 {[%emt 0:07:37]} Nbd7 {[%emt 0:01:36]} 13. cxd5 {[%emt 0:01:54]} exd5 {[%emt 0:02:32]} 14. Nd2 {[%emt 0:07:44]} Rc8 {[%emt 0:07:17]} 15. Qb2 {[%emt 0:04:54]} h6 {[%emt 0:02:42]} 16. Ngf3 {[%emt 0:00:23]} Re8 {[%emt 0:04:53]} 17. Rfd1 {[%emt 0:05:46]} Bf8 {[%emt 0:04:29]} 18. Rac1 {[%emt 0:01:18]} Rxe2 {[%emt 0:07:06]} 19. Bf1 {[%emt 0:03:56]} Re8 {[%emt 0:01:05]} 20. Bh3 {[%emt 0:07:36]} Rc7 {[%emt 0:05:00]} 21. Bf5 {[%emt 0:04:37]} g6 {[%emt 0:05:48]} 22. Bxf6 {[%emt 0:02:29]} Qxf6 {[%emt 0:10:29]} 23. Qxf6 {[%emt 0:00:27]} Rxc1 {[%emt 0:00:07]} 24. Bxd7 {[%emt 0:02:03]} Rxd1+ {[%emt 0:00:33]} 25. Kg2 {[%emt 0:00:17]} Bg7 {[%emt 0:01:38]} 26. Qd6 {[%emt 0:01:33]} Re2 {[%emt 0:06:14]} 27. Qb8+ {[%emt 0:00:30]} Kh7 {[%emt 0:00:05]} 28. Qxb7 {[%emt 0:00:12]} Rdxd2 {[%emt 0:00:19]} 29. Nxd2 {[%emt 0:00:07]} Rxd2 {[%emt 0:00:12]} 30. Be8 {[%emt 0:01:42]} d4 {[%emt 0:00:45]} 31. Qxf7 {[%emt 0:00:16]} d3 {[%emt 0:00:43]} 32. Qxg6+ {[%emt 0:00:06]} Kh8 {[%emt 0:00:14]} 33. Bd7 {[%emt 0:00:29]} Kg8 {[%emt 0:01:43]} 34. Be6+ {[%emt 0:00:08]} 1-0

[Event "Reykjavik Open 2024"]
[Site "Reykjavik"]
[Date "2024.03.19"]
[Round "7.39"]
[White "Paasikangas, Johanna"]
[Black "Botez, Andrea"]
[Result "1-0"]
[ECO "E94"]
[WhiteElo "2046"]
[BlackElo "1825"]
[Annotator "NA RC"]
[PlyCount "75"]
[EventDate "2024.03.12"]
[EventCountry "ISL"]
[SourceTitle "playchess.com"]
[Source "ChessBase"]
[SourceQuality "1"]
[TimeControl "40/5400+30:1800+30"]

1. d4 {[%emt 0:00:09]} Nf6 {[%emt 0:00:21]} 2. c4 {[%emt 0:00:14]} g6 {[%emt 0:00:13]} 3. Nc3 {[%emt 0:00:16]} Bg7 {[%emt 0:00:11]} 4. e4 {[%emt 0:00:11]} d6 {[%emt 0:00:07]} 5. Nf3 {[%emt 0:00:11]} O-O {[%emt 0:00:19]} 6. Be2 {[%emt 0:00:08]} Qe8 {[%emt 0:00:35]} 7. O-O {[%emt 0:01:59]} e5 {[%emt 0:04:57]} 8. dxe5 {[%emt 0:03:22]} dxe5 {[%emt 0:00:08]} 9. Be3 {[%emt 0:02:45]} Na6 {[%emt 0:10:37]} 10. Nd2 {[%emt 0:03:56]} Be6 {[%emt 0:12:26]} 11. a3 {[%emt 0:02:44]} Nd7 {[%emt 0:06:39]} 12. b4 {[%emt 0:06:14]} f5 {[%emt 0:03:08]} 13. f3 {[%emt 0:02:40]} f4 {[%emt 0:20:46]} 14. Bf2 {[%emt 0:00:32]} g5 {[%emt 0:00:57]} 15. c5 {[%emt 0:02:21]} c6 {[%emt 0:04:13]} 16. Bc4 {[%emt 0:02:16]} Rf6 {[%emt 0:04:34]} 17. Qe2 {[%emt 0:09:24]} Nc7 {[%emt 0:01:43]} 18. Rfd1 {[%emt 0:02:44]} h5 {[%emt 0:11:23]} 19. a4 {[%emt 0:18:51]} g4 {[%emt 0:06:40]} 20. fxg4 {[%emt 0:02:58]} hxg4 {[%emt 0:00:13]} 21. Qxg4 {[%emt 0:02:11]} Nd5 {[%emt 0:03:17]} 22. Bxd5 {[%emt 0:05:51]} cxd5 {[%emt 0:00:53]} 23. Qe2 {[%emt 0:01:03]} Rg6 {[%emt 0:06:25]} 24. Nxd5 {[%emt 0:02:10]} Bxd5 {[%emt 0:00:40]} 25. exd5 {[%emt 0:00:50]} e4 {[%emt 0:00:17]} 26. Qxe4 {[%emt 0:02:55]} Bxa1 {[%emt 0:00:19]} 27. Rxa1 {[%emt 0:00:09]} Qxe4 {[%emt 0:00:44]} 28. Nxe4 {[%emt 0:00:06]} Ne5 {[%emt 0:00:35]} 29. Rd1 {[%emt 0:02:01]} Kg7 {[%emt 0:00:36]} 30. Bd4 {[%emt 0:00:47]} Re8 {[%emt 0:00:33]} 31. Nd6 {[%emt 0:05:23]} Rxd6 {[%emt 0:00:46]} 32. cxd6 {[%emt 0:00:07]} Kf7 {[%emt 0:00:27]} 33. Bxa7 {[%emt 0:01:05]} Ra8 {[%emt 0:00:28]} 34. Bd4 {[%emt 0:00:27]} Nc4 {[%emt 0:00:19]} 35. a5 {[%emt 0:00:29]} Nxd6 {[%emt 0:00:34]} 36. Be5 {[%emt 0:00:25]} Ne4 {[%emt 0:00:28]} 37. Bxf4 {[%emt 0:00:44]} Rc8 {[%emt 0:00:33]} 38. d6 {[%emt 0:03:01]} 1-0

[Event "Reykjavik Open 2024"]
[Site "Reykjavik"]
[Date "2024.03.19"]
[Round "7.40"]
[White "Saine, Zachary"]
[Black "Lohia, Sohum"]
[Result "0-1"]
[ECO "C55"]
[WhiteElo "2010"]
[BlackElo "2354"]
[Annotator "TA"]
[PlyCount "74"]
[EventDate "2024.03.12"]
[EventCountry "ISL"]
[SourceTitle "playchess.com"]
[Source "ChessBase"]
[SourceQuality "1"]
[TimeControl "40/5400+30:1800+30"]

{[%evp 9,74,11,44,48,32,31,33,21,43,7,27,39,39,45,48,36,32,37,37,-21,-33,-43,-16,-30,0,-45,-42,-39,-3,-22,-18,-67,0,-47,-49,-25,-6,-25,0,0,0,0,15,19,13,15,18,-14,9,-64,0,-115,-12,-16,0,-73,-73,-73,-72,-254,-245,-29989,-29990,-29990,-29991,-29991,-29992]} 1. e4 {[%emt 0:00:18]} e5 {[%emt 0:00:13]} 2. Nf3 {[%emt 0:00:29]} Nc6 {[%emt 0:00:17]} 3. Bc4 {[%emt 0:00:51]} Nf6 {[%emt 0:00:15]} 4. d3 {[%emt 0:00:14]} h6 {[%emt 0:00:23]} 5. h3 {[%emt 0:02:11]} d6 {[%emt 0:01:56]} 6. c3 {[%emt 0:05:18]} g5 {[%emt 0:01:31]} 7. a4 {[%emt 0:07:06]} Bg7 {[%emt 0:02:05]} 8. a5 {[%emt 0:04:14] White is slightly better.} a6 {[%emt 0:04:30]} 9. Qb3 {[%emt 0:11:13]} Qe7 {[%emt 0:07:59]} 10. Nbd2 {[%emt 0:02:34][%cal Bb1d2,Bd2f1,Bf1e3][%mdl 32]} Rb8 {[%emt 0:24:37]} 11. Nf1 {[%emt 0:09:59]} Be6 {[%emt 0:02:25]} 12. Ne3 {[%emt 0:02:26]} Qd7 {[%emt 0:06:02]} 13. g4 {[%emt 0:12:17]} Ne7 {[%emt 0:02:04]} 14. Ra4 {[%emt 0:13:12]} (14. Bxe6 $14 fxe6 15. h4) 14... d5 $11 {[%emt 0:09:51]} 15. Nxe5 {[%emt 0:06:29]} Qd6 {[%emt 0:03:23]} 16. exd5 {[%emt 0:00:46]} Nfxd5 {[%emt 0:01:14]} 17. Nf3 {[%emt 0:05:50][%cal Oe3f5]} Nf4 {[%emt 0:11:12][%mdl 1024] Black has compensation.} 18. Qd1 {[%emt 0:01:52][%cal Oe3f5]} Bd7 {[%emt 0:14:07]} 19. Ra3 {[%emt 0:05:35]} (19. h4 {keeps more tension.} Bxa4 20. Qxa4+ Kf8 21. hxg5 hxg5 22. Rxh8+ Bxh8 23. Nxg5 Nxd3+ 24. Bxd3 Qxd3 25. Qf4) 19... Bc6 {[%emt 0:01:01]} 20. d4 {[%emt 0:01:06]} (20. h4 $11) 20... Qf6 {[%emt 0:02:23]} ({Black should play} 20... O-O $15) 21. d5 {[%emt 0:03:23]} (21. Kf1 $11 {deserves consideration.}) 21... Rd8 $15 {[%emt 0:00:51][%cal Rf4d5]} 22. Nd4 {[%emt 0:01:19]} Nfxd5 {[%emt 0:01:43]} (22... Bd7 {looks sharper.} 23. h4 Kf8 24. Kf1 gxh4 25. Ndf5 Bxf5 26. gxf5 Nfxd5 27. Nxd5 Qxf5 28. Qd3 Qxd3+ 29. Bxd3 Nxd5 30. c4 Ne7) 23. Nxc6 {[%emt 0:00:39]} Qxc6 {[%emt 0:00:38]} 24. Qf3 {[%emt 0:00:31]} O-O {[%emt 0:00:51] Active counter play!} 25. O-O {[%emt 0:00:44]} Nxe3 {[%emt 0:00:53]} 26. Qxc6 {[%emt 0:00:13]} Nxc6 {[%emt 0:00:06]} 27. Bxe3 {[%emt 0:00:36]} Rfe8 {[%emt 0:00:31]} 28. b4 {[%emt 0:00:54]} Ne7 {[%emt 0:00:49] [#]} 29. h4 {[%emt 0:01:11]} Bf6 {[%emt 0:00:37]} (29... Nd5 $15 30. Bxd5 Rxd5) 30. f4 {[%emt 0:00:25]} (30. b5 $11 {remains equal.}) 30... Nd5 {[%emt 0:00:28]} (30... gxh4 $17 {[%cal Oe7f5] White must now prevent ...Nf5!} 31. Kf2 h5 (31... Nd5 32. Bxd5 Rxd5 33. c4 $17)) 31. Bxd5 $11 {[%emt 0:01:17]} Rxd5 {[%emt 0:00:02]} 32. fxg5 {[%emt 0:00:09]} (32. c4 $11 {keeps the balance.} Rd6 33. fxg5 hxg5 34. hxg5) 32... Rxe3 $17 {[%emt 0:00:49]} 33. Rxf6 {[%emt 0:00:28]} hxg5 $11 {[%emt 0:00:27] KRR-KRR} 34. Kg2 $2 {[%emt 0:01:07] White does not recover from this.} (34. hxg5 $17 Rg3+ (34... Rxg5 35. Kf2 $17) 35. Kf2 Rxg4 36. c4 Rxc4 (36... Rdxg5 37. Raf3 $15) 37. g6) 34... gxh4 $19 {[%emt 0:00:33] Hoping for ...Rd2+.} 35. Rf3 $2 {[%emt 0:00:32] [#]} (35. Ra2 $19) 35... Rd2+ {[%emt 0:00:33] Black mates.} 36. Rf2 {[%emt 0:00:06]} h3+ {[%emt 0:00:26]} 37. Kg1 {[%emt 0:00:21]} Re1+ {[%emt 0:00:12] Weighted Error Value: White=0.51/Black=0.18 (very precise) .  Loses game:     	White=1     	---        Mistake:       	White=7     	Black=3      Inaccurate:     	White=3     	Black=2      OK:         	White=10    	Black=11     Best:        	White=2     	Black=3} 0-1

[Event "Reykjavik Open 2024"]
[Site "Reykjavik"]
[Date "2024.03.19"]
[Round "7.41"]
[White "Soderstrom, Adrian"]
[Black "Sachi Jain"]
[Result "1-0"]
[ECO "E05"]
[WhiteElo "2288"]
[BlackElo "1992"]
[Annotator "TA"]
[PlyCount "153"]
[EventDate "2024.03.12"]
[EventCountry "ISL"]
[SourceTitle "playchess.com"]
[Source "ChessBase"]
[SourceQuality "1"]
[TimeControl "40/5400+30:1800+30"]

{[%evp 20,153,-2,-11,-10,-14,0,0,0,-2,9,-9,-13,-3,-9,-45,0,0,0,-2,16,0,21,0,0,0,0,0,0,0,0,0,0,-6,0,0,0,0,0,0,0,0,0,0,0,0,0,0,0,0,0,0,0,0,0,0,8,8,23,12,155,175,201,8,8,8,8,9,8,8,8,12,194,79,237,216,284,170,191,182,157,87,272,251,243,209,29973,29975,29975,29975,29977,29978,4134,29955,29958,29952,29963,29963,29967,29969,29968,29970,29970,29972,29971,29973,29973,29974,29975,29976,29974,29977,29977,29978,29978,29977,29977,29978,29978,29979,29979,29978,29983,29982,29982,29980,29983,29979,29979,29978,29982,29983,29983,29984,29985,29986]} 1. d4 {[%emt 0:00:05]} d5 {[%emt 0:03:18]} 2. Nf3 {[%emt 0:00:11]} e6 {[%emt 0:00:24]} 3. g3 {[%emt 0:00:09]} Nf6 {[%emt 0:00:59]} 4. Bg2 {[%emt 0:00:14]} Be7 {[%emt 0:00:14]} 5. c4 {[%emt 0:00:20]} dxc4 {[%emt 0:02:09]} 6. O-O {[%emt 0:00:38]} O-O {[%emt 0:01:37]} 7. Qc2 {[%emt 0:00:08]} a6 {[%emt 0:01:17]} 8. Qxc4 {[%emt 0:00:08]} b5 {[%emt 0:01:23]} 9. Qc2 {[%emt 0:00:08]} Bb7 {[%emt 0:00:08]} 10. Bg5 {[%emt 0:00:08]} Nbd7 {[%emt 0:03:54]} 11. Nbd2 {[%emt 0:00:52]} c5 {[%emt 0:13:37]} 12. Bxf6 {[%emt 0:00:40]} Bxf6 {[%emt 0:00:55]} 13. dxc5 {[%emt 0:00:21][%cal Of3g5]} Rc8 $1 {[%emt 0:00:17] Die Stellung ist ausgeglichen.} 14. Nb3 {[%emt 0:07:22][%cal Of3g5] Und jetzt Ng5! wäre schön.} Bd5 {[%emt 0:01:37]} 15. Nfd2 {[%emt 0:08:57]} Bxg2 {[%emt 0:05:32]} 16. Kxg2 {[%emt 0:00:05]} Be7 {[%emt 0:00:02][%cal Bf6e7,Be7c5,Bc5b6,Bb6d8][%mdl 32]} 17. Ne4 {[%emt 0:08:27] [#]} Nxc5 $1 {[%emt 0:00:50]} 18. Nexc5 {[%emt 0:08:23]} Bxc5 {[%emt 0:01:30]} 19. Qe4 {[%emt 0:00:49]} Qe7 {[%emt 0:04:46]} 20. Rac1 {[%emt 0:02:06]} Bb6 {[%emt 0:01:08]} 21. Rxc8 {[%emt 0:09:09]} Rxc8 {[%emt 0:00:08]} 22. Rc1 {[%emt 0:00:23]} Qd7 {[%emt 0:04:18]} 23. Rxc8+ {[%emt 0:03:49]} Qxc8 $11 {[%emt 0:00:02][%mdl 4096] Endspiel. KQB-KQN} 24. h4 {[%emt 0:03:05]} h6 {[%emt 0:03:28]} 25. e3 {[%emt 0:00:32]} Bd8 {[%emt 0:03:01]} 26. Nd2 {[%emt 0:02:29]} Bf6 {[%emt 0:01:16]} 27. b3 {[%emt 0:00:27]} Qd8 {[%emt 0:05:34]} 28. Nf3 {[%emt 0:00:21]} Qa5 {[%emt 0:00:55]} 29. Qc2 {[%emt 0:01:54]} Qc3 {[%emt 0:01:59]} 30. Qxc3 {[%emt 0:04:38]} Bxc3 {[%emt 0:00:02] KB-KN} 31. Kf1 {[%emt 0:00:36]} Kf8 {[%emt 0:00:30]} 32. Ke2 {[%emt 0:00:09]} Ke7 {[%emt 0:00:10]} 33. Kd3 {[%emt 0:00:11]} Bf6 {[%emt 0:01:47]} 34. Nd2 {[%emt 0:02:17]} Kd7 {[%emt 0:02:02]} 35. h5 {[%emt 0:06:31]} e5 {[%emt 0:09:08]} 36. Ke4 {[%emt 0:02:30] Droht stark Kd5.} Ke6 {[%emt 0:00:41]} 37. Nf3 {[%emt 0:02:01]} Bd8 {[%emt 0:01:49] Droht ...f5+ und aus.} 38. g4 {[%emt 0:00:08]} (38. Nxe5 $2 f5+ 39. Kd4 Bb6+ 40. Kd3 Kxe5 $19) 38... Bf6 {[%emt 0:01:38]} 39. Ne1 {[%emt 0:02:39]} a5 {[%emt 0:04:19]} (39... g6 $1 $11 {bleibt in der Remisbreite.}) 40. Nd3 $16 {[%emt 0:04:08]} Kd6 {[%emt 0:00:05]} 41. f3 $2 {[%emt 0:35:59]} ({Der einzige Zug:} 41. Kf5 $1 $18) 41... g6 $11 {[%emt 0:34:15]} 42. hxg6 {[%emt 0:01:50]} fxg6 {[%emt 0:00:02]} 43. f4 {[%emt 0:00:19]} exf4 {[%emt 0:01:11]} 44. Nxf4 {[%emt 0:00:27]} Kc5 {[%emt 0:02:10]} 45. Kd3 {[%emt 0:02:23]} g5 $2 {[%emt 0:00:00]} (45... h5 $1 $11 {und Schwarz ist OK.}) 46. Ne2 {[%emt 0:00:18]} (46. Ne6+ $1 $18 {ist der präzise Gewinnweg.} Kb4 47. Nd4) 46... Kb4 $2 {[%emt 0:00:00]} (46... Ba1 $16 {war einen Versuch wert.}) 47. Nd4 $18 {[%emt 0:02:17]} Ka3 {[%emt 0:00:00]} 48. Nxb5+ {[%emt 0:00:27]} (48. Nc6 $142 $1) 48... Kxa2 {[%emt 0:00:00]} 49. Nd4 {[%emt 0:00:49]} Ka3 {[%emt 0:00:00]} 50. Kc4 {[%emt 0:01:54]} (50. Nc6 $6 Kxb3 51. Nxa5+ Kb4 $14) ({Vorzuziehen ist} 50. Kc3 $1) 50... h5 $2 {[%emt 0:04:03]} 51. gxh5 {[%emt 0:00:28][%cal Bg4h5,Bh5h6,Bh6h7][%mdl 32]} g4 {[%emt 0:00:01]} 52. Nf5 {[%emt 0:05:07] Weiss droht h6 und Matt.} Be5 $2 {[%emt 0:00:13]} (52... Bg7 $18 53. e4 (53. Nxg7 g3 $11) 53... Ka2 54. Nxg7 g3) 53. h6 $1 {[%emt 0:00:54]} Bh8 {[%emt 0:03:30]} 54. h7 {[%emt 0:00:36]} Kb2 {[%emt 0:00:25]} 55. e4 {[%emt 0:00:11]} Ka3 {[%emt 0:00:23]} 56. Kd5 {[%emt 0:02:33]} (56. Ng3 $18 Bg7 57. Kd5 Kxb3 58. e5) 56... Kxb3 {[%emt 0:00:01] Weiß setzt Matt.} 57. e5 {[%emt 0:00:10]} g3 {[%emt 0:04:36]} 58. Nd4+ $1 {[%emt 0:01:50]} (58. Nxg3 a4 $16) 58... Kb4 {[%emt 0:04:46]} 59. Ne2 $1 {[%emt 0:00:05]} a4 {[%emt 0:00:02]} 60. e6 $1 {[%emt 0:00:15]} (60. Nxg3 a3 61. e6 a2 $11) 60... a3 {[%emt 0:00:01]} 61. e7 $1 {[%emt 0:00:08]} (61. Nxg3 a2 62. e7 a1=Q $11 (62... a1=B 63. e8=Q Bae5 64. Qxe5 Bxe5 65. Kxe5 Kc3 66. h8=Q Kc4 67. Qg8+ Kc5 68. Qd5+ Kb4 69. Kd4 Ka3 70. Kc3 Ka4 71. Nh5 Ka3 72. Qb3#)) 61... a2 {[%emt 0:00:04]} 62. e8=Q {[%emt 0:00:12]} a1=Q {[%emt 0:00:03] [#] KQB-KQN} 63. Qb8+ $1 {[%emt 0:00:09]} (63. Nxg3 Qd1+ 64. Ke6 Qb3+ 65. Kd7 Qd3+ 66. Kc8 Qc3+ (66... Qxh7 67. Qf8+ Kb3 68. Qf3+ Kb2 69. Qg2+ Qc2+ 70. Qxc2+ Kxc2 71. Nh5 $11) 67. Kd8 Qxg3 $11) 63... Ka5 {[%emt 0:00:09]} 64. Qa8+ {[%emt 0:00:38]} (64. Qxg3 Qh1+ 65. Kd6 Qd1+ 66. Kc5 Qc2+ (66... Qxe2 67. Qa3#) 67. Kd6 Qb2 $11) 64... Kb6 {[%emt 0:00:24] [#]} 65. Qxa1 $1 {[%emt 0:00:12]} Bxa1 {[%emt 0:00:01]} 66. Nxg3 {[%emt 0:00:09] KB-KN} Kc7 {[%emt 0:00:17]} 67. Nf5 {[%emt 0:00:12]} Bh8 {[%emt 0:00:04]} 68. Ke6 {[%emt 0:00:05]} Kd8 {[%emt 0:00:03]} 69. Kf7 {[%emt 0:00:07]} Kd7 {[%emt 0:00:01]} 70. Nh4 {[%emt 0:04:01]} Kd8 {[%emt 0:02:40]} 71. Ng6 {[%emt 0:00:06]} Bc3 {[%emt 0:00:16]} 72. Nf4 {[%emt 0:01:02]} ({Minderwertig wäre} 72. h8=R+ Bxh8 73. Nxh8 $11) 72... Bh8 {[%emt 0:00:54]} 73. Ne6+ {[%emt 0:00:15]} Kd7 {[%emt 0:00:09]} 74. Nc5+ {[%emt 0:00:05]} Kd8 {[%emt 0:00:19]} 75. Kf8 {[%emt 0:00:05]} Kc8 {[%emt 0:02:03]} 76. Kg8 {[%emt 0:00:12]} Bf6 {[%emt 0:00:34]} 77. Ne6 {[%emt 0:00:05] Gewichteter Fehlerwert: Weiß=0.13 (sehr präzise) /Schwarz=0.30.  Verlustzug:     	---       	Schwarz=2     Gewinn verpasst:   	Weiß=1     	---        Fehler:       	Weiß=3     	Schwarz=3     Ungenau:       	Weiß=1     	Schwarz=2     OK:         	Weiß=16    	Schwarz=14    Bester:       	Weiß=4     	---        Stark:        	Weiß=1     	Schwarz=1} ({Nicht} 77. h8=R Bxh8 78. Kxh8 $11) 1-0